bitfinex/quotes_SOLUSD_20220228
["timestamp","ask_amount","ask_price","bid_price","bid_amount"]
[1646009143390,22.537,85.229,85.171,2.37895644]
[1646009143589,22.537,85.229,85.17,14.05]
[1646009144387,22.537,85.229,85.171,6.0]
[1646009144586,22.537,85.229,85.171,8.27530782]
[1646009144985,22.537,85.229,85.17,14.05]
[1646009145186,22.537,85.229,85.171,8.29634151]
[1646009145993,22.537,85.229,85.17,14.05]
[1646009146387,6.0,85.228,85.17,14.05]
[1646009147188,22.537,85.229,85.17,14.05]
[1646009147590,17.6184,85.25,85.17,14.05]
[1646009147789,6.0,85.247,85.17,14.05]
[1646009147990,6.0,85.247,85.171,6.0]
[1646009148292,17.6184,85.25,85.171,6.0]
[1646009148293,50.16813658,85.261,85.173,3.00195165]
[1646009148490,6.0,85.26,85.176,2.70686378]
[1646009148690,6.0,85.26,85.19,14.05]
[1646009148889,6.0,85.26,85.192,118.0]
[1646009149089,6.0,85.274,85.194,118.0]
[1646009149293,6.0,85.274,85.195,126.93704192]
[1646009149490,6.0,85.274,85.196,9.05621126]
[1646009149691,6.0,85.274,85.21,14.05]
[1646009150791,51.41834751,85.273,85.21,14.05]
[1646009150995,6.0,85.272,85.21,14.05]
[1646009153392,17.613,85.27,85.21,14.05]
[1646009153696,6.0,85.269,85.21,14.05]
[1646009153893,7.74711478,85.269,85.191,23.1634]
[1646009154094,7.74711478,85.269,85.19,14.05]
[1646009154294,17.6171,85.25,85.19,14.05]
[1646009154493,60.51629681,85.249,85.19,14.05]
[1646009155695,60.51629681,85.249,85.179,23.1958]
[1646009155895,60.51629681,85.249,85.18,6.0]
[1646009156896,60.51629681,85.249,85.18,20.05]
[1646009157095,54.51629681,85.249,85.181,2.77910418]
[1646009157895,6.0,85.248,85.181,2.77910418]
[1646009158396,54.51629681,85.249,85.182,6.0]
[1646009161404,54.43339802,85.249,85.182,6.0]
[1646009164104,24.24064548,85.28,85.183,118.0]
[1646009164304,6.0,85.274,85.184,2.67925806]
[1646009164505,30.24064548,85.274,85.184,2.67925806]
[1646009164704,24.24064548,85.273,85.184,2.67925806]
[1646009164908,7.4544484,85.272,85.184,2.67925806]
[1646009165104,56.77114421,85.271,85.184,2.67925806]
[1646009165304,7.68889172,85.27,85.184,2.67925806]
[1646009165705,1.29013416,85.269,85.184,2.67925806]
[1646009165908,6.0,85.268,85.184,2.67925806]
[1646009166512,17.6154,85.26,85.184,2.67925806]
[1646009166707,29.7789,85.259,85.184,2.67925806]
[1646009166906,56.36900198,85.258,85.184,2.67925806]
[1646009167108,6.0,85.257,85.18,14.05]
[1646009167307,6.0,85.257,85.181,6.0]
[1646009167807,1.29386393,85.256,85.18,14.05]
[1646009168011,6.0,85.255,85.179,23.1958]
[1646009168210,7.42135653,85.255,85.179,23.1958]
[1646009168512,1.81627159,85.254,85.179,23.1958]
[1646009168716,6.0,85.253,85.179,23.1958]
[1646009169014,6.0,85.253,85.152,2.69564872]
[1646009169015,51.83383579,85.229,85.16,14.05]
[1646009169313,51.83383579,85.229,85.161,6.0]
[1646009169509,51.83383579,85.229,85.161,8.6711305]
[1646009169909,6.0,85.228,85.161,8.6711305]
[1646009170314,51.83383579,85.229,85.161,8.6711305]
[1646009170709,17.6182,85.25,85.162,2.74678921]
[1646009170908,28.6776,85.249,85.164,2.65857141]
[1646009171110,23.97281155,85.249,85.166,2.7593689]
[1646009171326,23.97281155,85.249,85.18,14.05]
[1646009171531,22.6776,85.249,85.182,2.84693726]
[1646009171730,45.88493137,85.248,85.182,2.84693726]
[1646009172328,45.88493137,85.248,85.182,120.84693726]
[1646009172529,17.6141,85.27,85.181,22.7375]
[1646009172530,3.23226169,85.284,85.185,2.65466769]
[1646009172731,3.23226169,85.284,85.2,14.05]
[1646009172932,47.6201,85.289,85.201,6.0]
[1646009173131,1.29585561,85.283,85.202,118.0]
[1646009173330,1.29585561,85.283,85.204,118.0]
[1646009173531,59.48274795,85.288,85.206,118.0]
[1646009173731,59.48274795,85.288,85.22,14.05]
[1646009173933,1.29585561,85.287,85.23,14.05]
[1646009174134,1.29585561,85.287,85.221,23.2533]
[1646009174332,6.0,85.286,85.221,23.2533]
[1646009174832,1.29585561,85.285,85.221,23.2533]
[1646009175034,6.0,85.284,85.221,23.2533]
[1646009175632,1.29585561,85.283,85.221,23.2533]
[1646009175833,6.0,85.282,85.221,23.2533]
[1646009176434,6.0,85.287,85.221,23.2533]
[1646009176836,1.29500449,85.286,85.221,23.2533]
[1646009177038,6.0,85.285,85.221,23.2533]
[1646009177838,6.0,85.287,85.222,6.0]
[1646009178041,6.0,85.288,85.222,8.31067988]
[1646009179739,6.0,85.288,85.222,2.31067988]
[1646009185447,24.24064548,85.287,85.221,23.2533]
[1646009185647,6.0,85.286,85.221,23.2533]
[1646009185846,8.86232488,85.286,85.221,23.2533]
[1646009186047,33.10297036,85.286,85.221,23.2533]
[1646009186247,2.80081946,85.285,85.221,23.2533]
[1646009186446,17.6111,85.28,85.221,23.2533]
[1646009186651,51.8527938,85.279,85.221,23.2533]
[1646009186849,45.8527938,85.279,85.221,23.2533]
[1646009187249,6.0,85.284,85.221,23.2533]
[1646009187250,6.0,85.284,85.223,2.52758536]
[1646009187450,6.0,85.288,85.223,2.52758536]
[1646009188250,60.68825663,85.287,85.223,2.52758536]
[1646009188449,6.0,85.286,85.223,2.52758536]
[1646009191553,23.2543,85.314,85.223,2.52758536]
[1646009191752,6.0,85.313,85.223,2.52758536]
[1646009192252,6.0,85.313,85.224,6.0]
[1646009192453,6.0,85.313,85.225,118.0]
[1646009192652,6.0,85.313,85.224,6.0]
[1646009192653,24.9314,85.323,85.227,118.0]
[1646009192854,24.9314,85.323,85.226,8.93489671]
[1646009192855,24.9314,85.323,85.241,118.0]
[1646009193052,24.9314,85.323,85.24,14.05]
[1646009193053,24.9314,85.323,85.242,38.00400092]
[1646009193252,24.9314,85.323,85.243,2.84932681]
[1646009193452,24.9314,85.323,85.244,10.69]
[1646009193655,46.55882057,85.322,85.245,118.0]
[1646009193854,6.0,85.321,85.25,14.05]
[1646009194053,6.0,85.321,85.251,6.0]
[1646009194352,6.0,85.322,85.253,2.59123541]
[1646009194555,6.0,85.322,85.254,2.73035588]
[1646009195355,6.0,85.322,85.255,6.0]
[1646009195553,6.0,85.322,85.255,124.0]
[1646009195756,6.0,85.322,85.256,2.69007558]
[1646009195955,6.0,85.322,85.26,14.05]
[1646009196254,6.0,85.322,85.261,118.0]
[1646009196454,6.0,85.322,85.262,2.77453018]
[1646009196654,6.0,85.322,85.265,2.63112761]
[1646009197256,24.3485,85.338,85.265,2.63112761]
[1646009197454,24.3485,85.338,85.271,118.0]
[1646009197660,17.5958,85.36,85.273,118.0]
[1646009197854,24.7281,85.359,85.276,2.64228292]
[1646009198054,24.7281,85.359,85.281,118.0]
[1646009198254,50.82249549,85.358,85.281,11.63879949]
[1646009198856,6.0,85.357,85.282,6.0]
[1646009199456,6.0,85.357,85.281,2.74399551]
[1646009199659,6.0,85.357,85.281,2.79630661]
[1646009199856,6.0,85.357,85.28,14.05]
[1646009200058,6.0,85.357,85.281,6.0]
[1646009200257,6.0,85.357,85.281,8.77860668]
[1646009200959,6.0,85.357,85.274,48.4211]
[1646009200960,7.64365254,85.357,85.274,48.4211]
[1646009201259,43.07063355,85.356,85.274,48.4211]
[1646009201461,7.75756414,85.355,85.274,48.4211]
[1646009201659,64.70318481,85.355,85.274,48.4211]
[1646009201867,59.66540024,85.354,85.274,48.4211]
[1646009202059,7.3553171,85.353,85.274,48.4211]
[1646009202263,1.78484149,85.352,85.274,48.4211]
[1646009202460,17.5987,85.34,85.274,48.4211]
[1646009202662,55.80640793,85.338,85.274,48.4211]
[1646009202960,6.0,85.337,85.274,48.4211]
[1646009203861,7.40029125,85.337,85.252,24.1108]
[1646009204060,17.6008,85.33,85.252,24.1108]
[1646009204262,7.67560726,85.329,85.252,24.1108]
[1646009204664,30.62070726,85.329,85.252,24.1108]
[1646009204868,1.40284491,85.328,85.252,24.1108]
[1646009205086,6.0,85.327,85.252,24.1108]
[1646009206669,59.18092559,85.319,85.246,6.93]
[1646009206869,119.56849617,85.317,85.246,6.93]
[1646009207069,1.7954732,85.314,85.246,6.93]
[1646009207268,1.71517067,85.311,85.246,6.93]
[1646009207473,1.61326732,85.308,85.246,6.93]
[1646009207668,118.0,85.304,85.246,6.93]
[1646009207871,1.75448079,85.301,85.246,6.93]
[1646009208069,6.0,85.3,85.246,6.93]
[1646009208269,118.0,85.299,85.246,6.93]
[1646009208471,118.0,85.297,85.246,6.93]
[1646009208770,1.7106171,85.294,85.246,6.93]
[1646009208970,171.3664465,85.291,85.246,6.93]
[1646009209170,7.82589119,85.29,85.246,6.93]
[1646009209572,2.74678921,85.289,85.246,6.93]
[1646009209772,6.0,85.288,85.246,6.93]
[1646009210174,8.74678921,85.288,85.246,6.93]
[1646009211974,118.0,85.287,85.246,6.93]
[1646009212174,118.0,85.285,85.17,14.05]
[1646009212374,118.0,85.283,85.16,14.05]
[1646009212596,118.0,85.281,85.161,23.618]
[1646009212794,118.0,85.279,85.162,7.42622554]
[1646009212996,118.0,85.277,85.162,7.42622554]
[1646009213196,118.0,85.275,85.162,2.73422554]
[1646009213397,1.35944206,85.272,85.161,23.618]
[1646009213595,3.01,85.267,85.161,23.618]
[1646009213794,118.0,85.263,85.161,23.618]
[1646009213994,1.72240329,85.262,85.161,23.618]
[1646009214196,1.3697394,85.26,85.161,23.618]
[1646009214395,6.0,85.259,85.161,23.618]
[1646009214595,1.7844449,85.257,85.161,23.618]
[1646009214794,6.0,85.256,85.162,4.694]
[1646009214994,6.0,85.256,85.161,23.618]
[1646009215395,6.0,85.256,85.162,2.27699336]
[1646009219101,6.0,85.256,85.162,3.06106318]
[1646009221606,118.0,85.255,85.162,3.06106318]
[1646009221804,17.6213,85.25,85.162,3.06106318]
[1646009222005,46.18145784,85.248,85.162,3.06106318]
[1646009222204,6.0,85.247,85.162,3.06106318]
[1646009223012,118.0,85.245,85.161,23.618]
[1646009223206,118.0,85.243,85.161,23.618]
[1646009223406,6.0,85.242,85.161,23.618]
[1646009223605,1.80814969,85.24,85.161,23.618]
[1646009223805,6.0,85.239,85.161,23.618]
[1646009225509,118.0,85.238,85.161,23.618]
[1646009225710,118.0,85.236,85.153,4.694]
[1646009225908,118.0,85.234,85.153,4.694]
[1646009226108,3.01,85.227,85.153,4.694]
[1646009226307,118.0,85.225,85.124,24.399]
[1646009226508,118.0,85.219,85.124,24.399]
[1646009226709,14.05,85.22,85.124,24.399]
[1646009226710,118.0,85.217,85.124,24.399]
[1646009226908,118.0,85.215,85.124,24.399]
[1646009227109,118.0,85.213,85.124,24.399]
[1646009227308,118.0,85.211,85.124,24.399]
[1646009227508,118.0,85.209,85.124,24.399]
[1646009227807,118.0,85.207,85.124,24.399]
[1646009228011,118.0,85.205,85.124,24.399]
[1646009228211,118.0,85.203,85.124,24.399]
[1646009228409,118.0,85.201,85.124,24.399]
[1646009228710,118.0,85.199,85.124,24.399]
[1646009228913,118.0,85.197,85.111,24.3404]
[1646009229113,7.37042612,85.198,85.111,24.3404]
[1646009229114,1.40203964,85.194,85.111,24.3404]
[1646009229311,118.0,85.187,85.084,24.1875]
[1646009229514,1.76303345,85.184,85.085,2.71339314]
[1646009229809,6.0,85.186,85.085,2.71339314]
[1646009229810,1.38125826,85.181,85.085,2.71339314]
[1646009230011,118.0,85.179,85.085,2.71339314]
[1646009230213,118.0,85.177,85.085,2.71339314]
[1646009230410,118.0,85.173,85.084,24.1875]
[1646009230613,1.49600284,85.17,85.084,24.1875]
[1646009230810,118.0,85.168,85.084,24.1875]
[1646009231013,6.0,85.169,85.084,24.1875]
[1646009231014,118.0,85.166,85.084,24.1875]
[1646009231212,118.0,85.164,85.084,24.1875]
[1646009231414,6.0,85.169,85.061,2.88370918]
[1646009231415,118.0,85.162,85.061,2.88370918]
[1646009231610,118.0,85.16,85.061,2.88370918]
[1646009231812,1.58548274,85.159,85.061,2.88370918]
[1646009232015,1.40371122,85.157,85.061,2.88370918]
[1646009232315,1.57633467,85.154,85.061,2.88370918]
[1646009232514,118.0,85.152,85.061,2.88370918]
[1646009232713,118.0,85.15,85.061,2.88370918]
[1646009232917,118.0,85.148,85.061,2.88370918]
[1646009233119,118.0,85.146,85.058,23.8365]
[1646009233314,118.0,85.144,85.058,23.8365]
[1646009233515,118.0,85.142,85.058,23.8365]
[1646009233717,118.0,85.14,85.058,23.8365]
[1646009233916,3.01,85.137,85.041,2.397333]
[1646009234115,3.01,85.137,84.97,58.828]
[1646009234116,118.0,85.135,85.035,2.49435878]
[1646009234316,118.0,85.135,85.021,46.9942]
[1646009234317,118.0,85.129,85.021,46.9942]
[1646009234514,1.84028252,85.128,85.021,46.9942]
[1646009234716,118.0,85.126,85.021,46.9942]
[1646009235018,1.74441906,85.123,85.022,2.64134614]
[1646009235215,166.60036085,85.121,85.022,2.64134614]
[1646009235417,6.0,85.12,85.023,6.0]
[1646009235624,6.0,85.12,85.023,8.68906715]
[1646009236620,7.49059718,85.12,85.023,8.68906715]
[1646009236818,7.49059718,85.12,85.023,2.68906715]
[1646009237219,31.84266271,85.12,85.023,2.68906715]
[1646009237519,1.46691637,85.119,85.023,2.68906715]
[1646009237720,6.0,85.118,85.023,2.68906715]
[1646009238841,118.0,85.117,85.023,2.68906715]
[1646009239020,118.0,85.115,85.023,2.68906715]
[1646009239220,118.0,85.113,85.023,2.68906715]
[1646009239422,118.0,85.111,85.023,2.68906715]
[1646009239621,118.0,85.107,85.023,2.68906715]
[1646009239821,118.0,85.105,85.023,2.68906715]
[1646009240024,118.0,85.103,85.023,2.68906715]
[1646009240222,118.0,85.101,85.023,2.68906715]
[1646009240427,118.0,85.099,85.021,46.9942]
[1646009240627,121.01,85.097,84.996,27.44413655]
[1646009240929,162.48141025,85.095,84.996,27.44413655]
[1646009241128,1.43389411,85.092,84.996,27.44413655]
[1646009241325,1.76712763,85.089,84.996,27.44413655]
[1646009241528,6.0,85.088,84.996,27.44413655]
[1646009242630,118.0,85.087,84.997,2.81026805]
[1646009242829,118.0,85.085,84.997,2.81026805]
[1646009243033,118.0,85.083,84.981,2.5454367]
[1646009243231,118.0,85.081,84.981,2.5454367]
[1646009243429,6.0,85.08,84.981,2.5454367]
[1646009243730,118.0,85.079,84.981,2.5454367]
[1646009243934,6.0,85.078,84.981,2.5454367]
[1646009244534,118.0,85.077,84.981,2.5454367]
[1646009244735,118.0,85.075,84.974,2.9900361]
[1646009244935,118.0,85.073,84.974,2.9900361]
[1646009245234,7.37472412,85.074,84.974,2.9900361]
[1646009245235,3.01,85.057,84.974,2.9900361]
[1646009245437,49.98357386,85.056,84.949,2.94337618]
[1646009245636,3.01,85.047,84.932,48.88902055]
[1646009245838,6.0,85.046,84.933,3.02091631]
[1646009246037,3.01,85.037,84.933,3.02091631]
[1646009246237,58.26537432,85.036,84.933,3.02091631]
[1646009246457,1.67718392,85.035,84.933,3.02091631]
[1646009246655,6.0,85.034,84.933,3.02091631]
[1646009246856,29.1615,85.034,84.933,3.02091631]
[1646009247657,24.6174,85.033,84.933,3.02091631]
[1646009247859,6.0,85.032,84.934,30.74131632]
[1646009248055,6.0,85.032,84.935,2.89471102]
[1646009248255,6.0,85.032,84.936,6.0]
[1646009248657,6.0,85.032,84.936,52.09957608]
[1646009248864,6.0,85.032,84.937,2.38446375]
[1646009249058,6.0,85.032,84.938,6.0]
[1646009249461,6.0,85.032,84.937,2.38446375]
[1646009249660,7.79871092,85.032,84.937,2.38446375]
[1646009250262,6.0,85.032,84.937,2.38446375]
[1646009250462,6.0,85.032,84.938,6.0]
[1646009252163,6.0,85.032,84.94,14.05]
[1646009252364,6.0,85.032,84.941,6.0]
[1646009252565,6.0,85.032,84.941,11.58590895]
[1646009252765,6.0,85.035,84.941,11.58590895]
[1646009253169,6.0,85.035,84.942,2.74678921]
[1646009253467,6.0,85.035,84.944,2.28429135]
[1646009253668,6.0,85.035,84.945,6.0]
[1646009255065,6.0,85.035,84.95,17.6587]
[1646009255266,6.0,85.035,84.951,8.49633138]
[1646009255466,6.0,85.035,84.952,118.0]
[1646009255667,6.0,85.035,84.954,118.0]
[1646009255868,6.0,85.035,84.957,2.53862892]
[1646009256067,6.0,85.035,84.96,14.05]
[1646009256270,6.0,85.035,84.961,8.73614608]
[1646009256967,6.0,85.035,84.961,2.73614608]
[1646009258269,118.0,85.034,84.961,2.73614608]
[1646009258574,118.0,85.032,84.961,2.73614608]
[1646009258771,124.0,85.031,84.961,2.73614608]
[1646009258969,6.0,85.03,84.961,2.73614608]
[1646009260071,124.0,85.031,84.961,2.73614608]
[1646009260471,1.66101032,85.03,84.956,23.2877]
[1646009260672,6.0,85.029,84.956,23.2877]
[1646009263474,118.0,85.028,84.956,23.2877]
[1646009263674,7.54010915,85.027,84.956,23.2877]
[1646009263879,6.0,85.026,84.956,23.2877]
[1646009264075,6.0,85.026,84.957,2.99634369]
[1646009264776,6.0,85.029,84.957,2.99634369]
[1646009267484,6.0,85.029,84.958,6.0]
[1646009268886,6.0,85.029,84.957,2.99634369]
[1646009270685,6.0,85.029,84.957,120.99634369]
[1646009270886,6.0,85.029,84.958,8.97625431]
[1646009271088,6.0,85.029,84.96,14.05]
[1646009271286,6.0,85.035,84.961,9.08073312]
[1646009276210,17.66,85.05,84.962,118.0]
[1646009276411,6.0,85.049,84.965,2.50579012]
[1646009276612,6.0,85.049,84.97,14.05]
[1646009276813,6.0,85.049,84.971,8.48344118]
[1646009277012,6.0,85.049,84.972,2.2622007]
[1646009277218,44.13926877,85.048,84.973,6.0]
[1646009277413,6.0,85.047,84.973,6.0]
[1646009279115,6.0,85.047,84.972,2.2622007]
[1646009280418,1.67253313,85.045,84.971,23.1555]
[1646009280618,118.0,85.043,84.971,23.1555]
[1646009280820,125.52195332,85.042,84.971,23.1555]
[1646009281017,1.4292119,85.041,84.971,23.1555]
[1646009281218,6.0,85.04,84.971,23.1555]
[1646009282218,118.0,85.039,84.971,23.1555]
[1646009282421,1.42527831,85.036,84.971,23.1555]
[1646009282620,46.69518147,85.034,84.971,23.1555]
[1646009282819,6.0,85.033,84.971,23.1555]
[1646009283419,118.0,85.032,84.971,23.1555]
[1646009283619,6.0,85.031,84.971,23.1555]
[1646009283821,7.50159687,85.031,84.971,23.1555]
[1646009284320,118.0,85.03,84.971,23.1555]
[1646009284524,1.45455929,85.027,84.932,2.36095865]
[1646009284721,118.0,85.025,84.933,24.892]
[1646009284924,6.0,85.026,84.934,2.76209569]
[1646009284925,118.0,85.023,84.934,2.76209569]
[1646009285123,118.0,85.019,84.933,24.892]
[1646009285323,118.0,85.017,84.933,24.892]
[1646009285523,118.0,85.015,84.933,24.892]
[1646009285721,1.63235625,85.012,84.933,24.892]
[1646009285922,6.0,85.011,84.933,24.892]
[1646009286926,118.0,85.01,84.933,24.892]
[1646009287123,118.0,85.006,84.933,24.892]
[1646009287324,118.0,85.004,84.933,24.892]
[1646009287626,118.0,85.002,84.933,24.892]
[1646009287825,6.0,85.001,84.933,24.892]
[1646009288623,118.0,85.002,84.933,24.892]
[1646009288824,6.0,85.001,84.933,24.892]
[1646009289425,6.0,85.005,84.933,24.892]
[1646009293932,6.0,85.005,84.934,2.74353122]
[1646009297241,17.6642,85.03,84.935,8.74678921]
[1646009297438,17.6642,85.03,84.95,14.05]
[1646009297737,17.6642,85.03,84.952,2.65268711]
[1646009297947,118.0,85.05,84.952,2.65268711]
[1646009298138,45.48343575,85.049,84.953,29.18953319]
[1646009298341,1.72207999,85.048,84.954,3.06387529]
[1646009298540,45.48343575,85.049,84.955,6.0]
[1646009298740,6.0,85.048,84.955,6.0]
[1646009298957,6.0,85.048,84.961,2.8282724]
[1646009299359,6.0,85.048,84.963,2.56319665]
[1646009299557,6.0,85.048,84.964,6.0]
[1646009301262,6.0,85.048,84.963,2.56319665]
[1646009302462,6.0,85.048,84.964,6.0]
[1646009303264,6.0,85.048,84.965,118.0]
[1646009303465,6.0,85.048,84.968,2.96662976]
[1646009303662,6.0,85.048,84.969,6.0]
[1646009304361,6.0,85.048,84.971,2.41603578]
[1646009304761,6.0,85.048,84.972,24.07]
[1646009304962,6.0,85.048,84.973,2.3427168]
[1646009306263,23.90446548,85.047,84.973,2.3427168]
[1646009306463,17.6612,85.04,84.972,24.07]
[1646009306662,6.0,85.039,84.972,24.07]
[1646009311864,7.37076969,85.039,84.972,24.07]
[1646009312064,17.6631,85.03,84.972,24.07]
[1646009312265,6.0,85.029,84.972,24.07]
[1646009312465,17.6631,85.03,84.972,24.07]
[1646009312666,6.0,85.029,84.972,24.07]
[1646009313069,45.48343575,85.049,84.972,24.07]
[1646009313368,6.0,85.048,84.972,24.07]
[1646009314068,6.0,85.048,84.973,2.96368135]
[1646009314471,45.48343575,85.049,84.974,6.0]
[1646009315272,45.48343575,85.049,84.976,2.27160268]
[1646009315472,45.48343575,85.049,84.98,17.6544]
[1646009315669,45.48343575,85.049,84.981,2.79199316]
[1646009315869,22.5115,85.076,84.982,6.0]
[1646009316072,6.0,85.075,84.984,2.64239185]
[1646009316269,6.0,85.075,84.983,24.2731]
[1646009316270,6.0,85.075,84.986,118.0]
[1646009316471,6.0,85.075,84.99,14.05]
[1646009316670,6.0,85.075,84.991,28.5355]
[1646009316871,46.59154697,85.074,84.992,2.26705268]
[1646009317169,6.0,85.073,84.993,6.0]
[1646009317370,6.0,85.073,84.994,23.435]
[1646009317670,23.90446548,85.072,84.994,23.435]
[1646009317871,6.0,85.071,84.994,23.435]
[1646009318169,23.90446548,85.07,84.994,23.435]
[1646009318369,6.0,85.069,84.994,23.435]
[1646009318569,6.0,85.069,84.995,2.7527178]
[1646009319872,6.0,85.073,84.995,2.7527178]
[1646009320273,6.0,85.073,84.995,118.0]
[1646009320473,6.0,85.072,85.0,14.05]
[1646009320676,6.0,85.071,85.0,14.05]
[1646009320873,46.59154697,85.074,85.0,14.05]
[1646009321074,46.59154697,85.074,85.01,17.6486]
[1646009321373,46.59154697,85.074,85.012,2.37273548]
[1646009321774,46.59154697,85.074,85.03,0.6919388]
[1646009322973,6.0,85.073,85.03,0.6919388]
[1646009323173,46.59154697,85.074,85.03,0.6919388]
[1646009323774,6.0,85.073,85.03,0.6919388]
[1646009323976,6.0,85.073,85.064,0.6919388]
[1646009326482,17.8408,85.117,85.064,0.6919388]
[1646009326780,23.7729,85.114,85.064,8.1219388]
[1646009327179,6.0,85.113,85.064,8.1219388]
[1646009327380,60.87760635,85.112,85.064,8.1219388]
[1646009327582,6.0,85.111,85.064,8.1219388]
[1646009327785,17.6462,85.11,85.064,8.1219388]
[1646009327980,60.87760635,85.112,85.064,8.1219388]
[1646009331082,60.87760635,85.112,85.064,0.6919388]
[1646009331483,60.87760635,85.112,85.054,6.0]
[1646009331484,60.87760635,85.112,85.103,0.6919388]
[1646009332683,24.4847,85.139,85.103,0.6919388]
[1646009332884,6.0,85.138,85.103,0.6919388]
[1646009333084,29.90446548,85.138,85.103,0.6919388]
[1646009333384,23.90446548,85.137,85.103,0.6919388]
[1646009333584,6.0,85.136,85.103,0.6919388]
[1646009333784,50.20308414,85.135,85.103,0.6919388]
[1646009333987,6.0,85.134,85.103,0.6919388]
[1646009334394,17.6426,85.13,85.103,0.6919388]
[1646009334684,10.31173991,85.129,85.103,0.6919388]
[1646009334887,118.0,85.128,85.103,0.6919388]
[1646009335086,118.0,85.126,85.103,0.6919388]
[1646009335385,118.0,85.124,85.103,0.6919388]
[1646009335586,118.0,85.122,85.103,0.6919388]
[1646009335788,6.0,85.121,85.103,0.6919388]
[1646009336086,29.90446548,85.121,85.103,0.6919388]
[1646009336288,2.74678921,85.12,85.103,0.6919388]
[1646009336493,6.0,85.119,85.103,0.6919388]
[1646009336687,29.90446548,85.119,85.103,0.6919388]
[1646009337894,48.09846597,85.117,85.01,14.05]
[1646009338091,58.19789783,85.088,85.011,29.1207]
[1646009338294,118.0,85.086,85.011,29.1207]
[1646009338493,118.0,85.084,85.011,23.1207]
[1646009338693,118.0,85.082,84.992,23.7113]
[1646009338892,7.81385716,85.081,84.992,23.7113]
[1646009339291,17.6549,85.07,84.992,23.7113]
[1646009339494,54.16539663,85.068,84.993,2.82431852]
[1646009339692,6.0,85.067,84.993,2.82431852]
[1646009341392,6.0,85.067,84.994,4.704]
[1646009341794,6.0,85.067,84.995,6.0]
[1646009341996,6.0,85.067,84.994,4.704]
[1646009342395,6.0,85.067,84.993,2.82431852]
[1646009343798,6.0,85.067,84.995,2.68544369]
[1646009344295,6.0,85.067,84.994,24.6811]
[1646009344796,1.44864256,85.065,84.96,14.05]
[1646009344997,1.44864256,85.065,84.961,6.0]
[1646009345295,1.41787462,85.062,84.961,9.04294022]
[1646009345499,6.0,85.061,84.96,14.05]
[1646009345696,24.6655,85.06,84.961,27.23869729]
[1646009345897,7.77890542,85.059,84.962,2.30754226]
[1646009346097,1.78632919,85.057,84.962,2.30754226]
[1646009346299,49.26724964,85.055,84.962,2.30754226]
[1646009346498,6.0,85.054,84.962,2.30754226]
[1646009346898,118.0,85.053,84.962,2.30754226]
[1646009347100,124.0,85.052,84.962,2.30754226]
[1646009347297,1.7975846,85.051,84.961,24.6223]
[1646009347499,1.4918402,85.049,84.961,24.6223]
[1646009347700,1.71963602,85.046,84.961,24.6223]
[1646009347899,1.37014935,85.043,84.961,24.6223]
[1646009348102,45.73584979,85.041,84.961,24.6223]
[1646009348300,7.60162927,85.04,84.961,24.6223]
[1646009349400,6.0,85.04,84.962,3.11270569]
[1646009349602,6.0,85.04,84.962,25.28513319]
[1646009349800,6.0,85.04,84.963,27.99513964]
[1646009350000,6.0,85.04,84.963,25.28513319]